fUST/lending_fUST_20240508
["ID","MTS","AMOUNT","RATE_DAILY","PERIOD"]
[326568811,1715112640803,-500.0,0.00016701,2]
[326568813,1715112640812,-500.0,0.00016701,2]
[326568815,1715112640822,-1036.68,0.00016701,2]
[326568817,1715112640832,-500.0,0.00016701,2]
[326568819,1715112640841,-500.0,0.00016701,2]
[326568821,1715112640851,-570.46,0.00016701,2]
[326568823,1715112640860,-500.0,0.00016701,2]
[326568825,1715112640870,-3575.47,0.00016701,2]
[326568827,1715112640879,-500.0,0.00016701,2]
[326568828,1715112640889,-3484.72,0.00016701,2]
[326568830,1715112640898,-500.0,0.00016701,2]
[326568832,1715112640909,-500.0,0.00016701,2]
[326568834,1715112640918,-500.0,0.00016701,2]
[326568836,1715112640928,-1472.97,0.00016701,2]
[326568838,1715112640938,-2316.86,0.00016701,2]
[326568840,1715112640947,-500.0,0.00016702,2]
[326568842,1715112640957,-536.14,0.00016702,2]
[326568844,1715112640966,-749.14,0.00016702,2]
[326568846,1715112640976,-1472.07,0.00016702,2]
[326568848,1715112640986,-500.0,0.00016702,2]
[326568850,1715112640996,-500.0,0.00016702,2]
[326568852,1715112641006,-500.0,0.00016702,2]
[326568854,1715112641015,-556.95,0.00016702,2]
[326568856,1715112641025,-3447.1,0.00016702,2]
[326568858,1715112641034,-442.73904129,0.00016702,2]
[326568860,1715112641044,-500.0,0.00016702,2]
[326568862,1715112641054,-500.0,0.00016702,2]
[326568864,1715112641064,-3460.36,0.00016702,2]
[326568866,1715112641073,-500.0,0.00016702,2]
[326568868,1715112641083,-513.29,0.00016702,2]
[326568870,1715112641092,-500.0,0.00016702,2]
[326568872,1715112641104,-797.38,0.00016702,2]
[326568874,1715112641114,-1504.28,0.00016702,2]
[326568876,1715112641123,-500.0,0.00016702,2]
[326568878,1715112641133,-19718.69,0.00016702,2]
[326568879,1715112641143,-500.0,0.00016702,2]
[326568881,1715112641152,-3180.18,0.00016702,2]
[326568883,1715112641162,-4384.69,0.00016702,2]
[326568885,1715112641172,-315.31838367,0.00016702,2]
[326568887,1715112641181,-1036.68,0.00016702,2]
[326568889,1715112641190,-1596.17,0.00016702,2]
[326568891,1715112641200,-500.0,0.00016702,2]
[326568893,1715112641209,-735.03,0.00016702,2]
[326568895,1715112641219,-897.74,0.00016702,2]
[326568897,1715112641229,-500.0,0.00016702,2]
[326568899,1715112641239,-151.0,0.00016702,2]
[326568901,1715112641250,-151.0,0.00016702,2]
[326568903,1715112641260,-5361.74,0.00016702,2]
[326568905,1715112641270,-500.0,0.00016702,2]
[326568907,1715112641279,-167.85937447,0.00016703,5]
[326568909,1715112641289,-500.0,0.00016703,2]
[326568911,1715112641299,-500.0,0.00016703,2]
[326568913,1715112641308,-764.06,0.00016703,2]
[326568915,1715112641318,-151.0,0.00016703,2]
[326568917,1715112641328,-151.0,0.00016703,2]
[326568919,1715112641337,-1120.61,0.00016703,2]
[326568921,1715112641347,-500.0,0.00016703,2]
[326568923,1715112641357,-500.0,0.00016703,2]
[326568925,1715112641367,-500.0,0.00016703,2]
[326568927,1715112641377,-500.0,0.00016703,2]
[326568929,1715112641386,-151.0,0.00016703,2]
[326568931,1715112641396,-500.0,0.00016703,2]
[326568933,1715112641406,-151.0,0.00016703,2]
[326568935,1715112641416,-500.0,0.00016703,2]
[326568937,1715112641426,-153.091258,0.00016703,2]
[326568939,1715112641436,-500.0,0.00016703,2]
[326568941,1715112641445,-500.0,0.00016703,2]
[326568943,1715112641455,-500.0,0.00016703,2]
[326568945,1715112641465,-587.53,0.00016703,2]
[326568947,1715112641474,-248.793588,0.00016703,2]
[326568949,1715112641484,-500.0,0.00016703,2]
[326568951,1715112641494,-151.0,0.00016703,2]
[326568953,1715112641505,-151.298486,0.00016703,2]
[326568954,1715112641515,-151.0,0.00016703,2]
[326568955,1715112641525,-151.0,0.00016703,2]
[326568956,1715112641535,-500.0,0.00016703,2]
[326568957,1715112641546,-151.0,0.00016703,2]
[326568958,1715112641555,-500.0,0.00016703,2]
[326568959,1715112641565,-500.0,0.00016703,2]
[326568960,1715112641574,-151.0,0.00016703,2]
[326568962,1715112641584,-151.0,0.00016703,2]
[326568964,1715112641593,-1036.68,0.00016703,2]
[326568966,1715112641603,-500.0,0.00016703,2]
[326568968,1715112641612,-151.0,0.00016704,2]
[326568970,1715112641622,-151.0,0.00016704,2]
[326568972,1715112641631,-500.0,0.00016704,2]
[326568974,1715112641641,-1036.68,0.00016704,2]
[326568976,1715112641650,-20760.5966732,0.00016705,2]
[326568978,1715112641660,-151.0,0.00016705,2]
[326568980,1715112641670,-155.93588005,0.00016713,2]
[326568982,1715112641682,-166.04587495,0.0001678,2]
[326568984,1715112641696,-153.0,0.000168,2]
[326568986,1715112641706,-153.0,0.000168,2]
[326568988,1715112641716,-306.0,0.000168,2]
[326568990,1715112641727,-153.0,0.000168,2]
[326568992,1715112641737,-306.0,0.00016822,2]
[326568994,1715112641748,-306.0,0.00016822,2]
[326568996,1715112641758,-181.484267,0.00016824,2]
[326568998,1715112641768,-254.077973,0.00016824,2]
[326569000,1715112641777,-29258.97041676,0.00016876,2]
[326569027,1715112642038,-999.09450037,0.00016876,2]
[326569045,1715112642203,-500.0,0.00016426,2]
[326569047,1715112642212,-32.72,0.00016876,2]
[326569475,1715112647496,-500.0,0.00016427,2]
[326569476,1715112647508,-3159.84,0.00016427,2]
[326569477,1715112647519,-500.0,0.000167,2]
[326569478,1715112647531,-500.0,0.00016701,2]
[326569479,1715112647542,-3159.84,0.00016701,2]
[326569480,1715112647552,-16065.00530338,0.00016876,2]
[326569775,1715112905701,264.09,0.0002655,120]
[326569776,1715113111126,300.0,9.999e-05,2]
[326569788,1715113554674,300.0,9.999e-05,2]
[326569911,1715113838717,-184.193206,0.0001589,2]
[326569913,1715113838727,-439.99855144,0.00016,2]
[326569916,1715113838739,-551.46408242,0.00016,2]
[326569917,1715113838749,-238.02243707,0.00016325,2]
[326569919,1715113838758,-217.78112,0.00016352,2]
[326569921,1715113838767,-300.0,0.00016423,2]
[326569923,1715113838776,-1142.43379582,0.00016424,2]
[326569925,1715113838786,-500.0,0.00016424,2]
[326569927,1715113838795,-500.0,0.00016424,2]
[326569929,1715113838804,-500.0,0.00016424,2]
[326569931,1715113838814,-891.58,0.00016425,2]
[326569933,1715113838823,-328.6227342,0.00016425,2]
[326569934,1715113838831,-500.0,0.00016425,2]
[326569936,1715113838840,-500.0,0.00016425,2]
[326569938,1715113838850,-500.0,0.00016425,2]
[326569940,1715113838859,-500.0,0.00016425,2]
[326569942,1715113838868,-723.21,0.00016425,2]
[326569944,1715113838877,-1974.08,0.00016425,2]
[326569946,1715113838886,-957.64,0.00016425,2]
[326569948,1715113838896,-500.0,0.00016425,2]
[326569949,1715113838905,-500.0,0.00016425,2]
[326569951,1715113838914,-500.0,0.00016425,2]
[326569953,1715113838923,-500.0,0.00016425,2]
[326569955,1715113838933,-500.0,0.00016425,2]
[326569957,1715113838942,-500.0,0.00016425,2]
[326569959,1715113838952,-741.75,0.00016425,2]
[326569961,1715113838961,-500.0,0.00016425,2]
[326569963,1715113838970,-3823.7,0.00016425,2]
[326569964,1715113838980,-500.0,0.00016425,2]
[326569966,1715113838989,-500.0,0.00016425,2]
[326569968,1715113838998,-500.0,0.00016425,2]
[326569970,1715113839007,-500.0,0.00016425,2]
[326569972,1715113839016,-5597.27,0.00016425,2]
[326569974,1715113839026,-643.6,0.00016425,2]
[326569976,1715113839040,-500.0,0.00016425,2]
[326569977,1715113839050,-500.0,0.00016425,2]
[326569978,1715113839059,-500.0,0.00016425,2]
[326569979,1715113839069,-500.0,0.00016425,2]
[326569980,1715113839081,-500.0,0.00016425,2]
[326569981,1715113839091,-500.0,0.00016425,2]
[326569982,1715113839101,-1552.07,0.00016425,2]
[326569983,1715113839111,-757.91,0.00016425,2]
[326569984,1715113839123,-983.13,0.00016425,2]
[326569985,1715113839133,-500.0,0.00016425,2]
[326569986,1715113839143,-500.0,0.00016425,2]
[326569987,1715113839153,-766.25,0.00016425,2]
[326569988,1715113839163,-500.0,0.00016425,2]
[326569989,1715113839172,-549.76477207,0.00016425,2]
[326569990,1715113839182,-851.0,0.00016425,2]
[326569991,1715113839191,-500.0,0.00016425,2]
[326569992,1715113839200,-268.44552716,0.00016425,2]
[326569993,1715113839211,-3065.33,0.00016425,2]
[326569994,1715113839220,-1036.68,0.00016425,2]
[326569995,1715113839230,-1036.68,0.00016425,2]
[326569996,1715113839239,-500.0,0.00016425,2]
[326569997,1715113839250,-3704.56,0.00016425,2]
[326569998,1715113839260,-500.0,0.00016425,2]
[326569999,1715113839270,-3403.19,0.00016425,2]
[326570000,1715113839280,-1461.52,0.00016425,2]
[326570001,1715113839290,-500.0,0.00016425,2]
[326570002,1715113839300,-536.14,0.00016425,2]
[326570003,1715113839310,-500.0,0.00016425,2]
[326570004,1715113839321,-749.14,0.00016425,2]
[326570005,1715113839330,-500.0,0.00016425,2]
[326570006,1715113839340,-1536.79,0.00016425,2]
[326570007,1715113839350,-2421.83,0.00016425,2]
[326570008,1715113839360,-500.0,0.00016425,2]
[326570009,1715113839369,-3575.47,0.00016425,2]
[326570010,1715113839379,-1202.16,0.00016425,2]
[326570011,1715113839389,-500.0,0.00016425,2]
[326570012,1715113839400,-500.0,0.00016426,2]
[326570014,1715113839409,-358.44061054,0.00016426,2]
[326570015,1715113839420,-500.0,0.00016426,2]
[326570017,1715113839430,-500.0,0.00016426,2]
[326570018,1715113839439,-175.5166854,0.00016426,2]
[326570020,1715113839448,-500.0,0.00016426,2]
[326570022,1715113839458,-500.0,0.00016426,2]
[326570024,1715113839467,-500.0,0.00016426,2]
[326570026,1715113839477,-500.0,0.00016426,2]
[326570028,1715113839488,-568.41,0.00016426,2]
[326570030,1715113839498,-1472.07,0.00016426,2]
[326570032,1715113839507,-500.0,0.00016426,2]
[326570034,1715113839516,-500.0,0.00016426,2]
[326570036,1715113839527,-500.0,0.00016426,2]
[326570038,1715113839537,-280.80355073,0.00016426,2]
[326570040,1715113839546,-500.0,0.00016426,2]
[326570042,1715113839556,-500.0,0.00016426,2]
[326570044,1715113839565,-500.0,0.00016426,2]
[326570046,1715113839574,-500.0,0.00016426,2]
[326570048,1715113839584,-1089.03,0.00016426,2]
[326570050,1715113839593,-500.0,0.00016426,2]
[326570052,1715113839602,-500.0,0.00016426,2]
[326570054,1715113839612,-556.95,0.00016426,2]
[326570056,1715113839622,-570.46,0.00016426,2]
[326570058,1715113839632,-321.82100988,0.00016426,2]
[326570060,1715113839642,-500.0,0.00016426,2]
[326570062,1715113839652,-500.0,0.00016426,2]
[326570064,1715113839661,-500.0,0.00016426,2]
[326570066,1715113839672,-500.0,0.00016426,2]
[326570068,1715113839681,-3484.72,0.00016426,2]
[326570070,1715113839691,-500.0,0.00016426,2]
[326570072,1715113839700,-797.38,0.00016426,2]
[326570074,1715113839710,-380.57790128,0.00016426,2]
[326570076,1715113839720,-500.0,0.00016426,2]
[326570078,1715113839730,-3183.78,0.00016426,2]
[326570080,1715113839740,-500.0,0.00016426,2]
[326570082,1715113839750,-3460.36,0.00016426,2]
[326570084,1715113839760,-500.0,0.00016426,2]
[326570086,1715113839770,-500.0,0.00016426,2]
[326570088,1715113839779,-500.0,0.00016426,2]
[326570090,1715113839789,-513.29,0.00016426,2]
[326570092,1715113839799,-532.05,0.00016426,2]
[326570094,1715113839809,-735.03,0.00016426,2]
[326570096,1715113839819,-500.0,0.00016426,2]
[326570098,1715113839829,-500.0,0.00016426,2]
[326570100,1715113839839,-500.0,0.00016426,2]
[326570102,1715113839849,-1510.78,0.00016426,2]
[326570104,1715113839859,-3180.18,0.00016426,2]
[326570106,1715113839870,-1036.68,0.00016426,2]
[326570108,1715113839879,-4384.69,0.00016426,2]
[326570110,1715113839889,-500.0,0.00016426,2]
[326570112,1715113839899,-500.0,0.00016426,2]
[326570114,1715113839909,-500.0,0.00016426,2]
[326570116,1715113839919,-19739.53,0.00016426,2]
[326570118,1715113839929,-500.0,0.00016426,2]
[326570120,1715113839939,-500.0,0.00016426,2]
[326570122,1715113839949,-1120.61,0.00016426,2]
[326570124,1715113839959,-764.06,0.00016426,2]
[326570126,1715113839969,-897.74,0.00016426,2]
[326570128,1715113839979,-500.0,0.00016426,2]
[326570130,1715113839989,-500.0,0.00016426,2]
[326570132,1715113840000,-5361.74,0.00016426,2]
[326570134,1715113840009,-500.0,0.00016427,2]
[326570136,1715113840019,-500.0,0.00016427,2]
[326570138,1715113840034,-500.0,0.00016427,2]
[326570139,1715113840044,-500.0,0.00016427,2]
[326570141,1715113840054,-500.0,0.00016427,2]
[326570143,1715113840065,-500.0,0.00016427,2]
[326570146,1715113840078,-500.0,0.00016427,2]
[326570148,1715113840089,-587.53,0.00016427,2]
[326570150,1715113840099,-500.0,0.00016427,2]
[326570168,1715113840275,-500.0,0.00016427,2]
[326570170,1715113840286,-501.71709557,0.00016427,2]
[326570172,1715113840296,-500.0,0.00016427,2]
[326570175,1715113840307,-500.0,0.00016427,2]
[326570178,1715113840317,-500.0,0.00016427,2]
[326570181,1715113840328,-273.3300509,0.000165,2]
[326570183,1715113840338,-55555.0,0.00016601,2]
[326570185,1715113840348,-500.0,0.00016698,2]
[326570187,1715113840358,-500.0,0.00016698,2]
[326570189,1715113840368,-500.0,0.00016698,2]
[326570191,1715113840378,-167.85937447,0.00016699,5]
[326570193,1715113840389,-20760.5966732,0.00016699,2]
[326570195,1715113840400,-891.58,0.00016699,2]
[326570197,1715113840410,-500.0,0.00016699,2]
[326570199,1715113840420,-88402.59576579,0.00016699,2]
[326570351,1715113841967,-999.9933705,0.00016699,2]
[326570353,1715113841980,-5204.78014932,0.00016699,2]
[326570615,1715113844709,-500.0,0.00016426,2]
[326570617,1715113844719,-124.421824,0.00016699,2]
[326570619,1715113844730,-5670.6,0.00016699,2]
[326570828,1715113846730,-1380.8967935,0.00016699,2]
[326574996,1715114174930,500.0,0.00015884,7]
[326574997,1715114175662,500.0,0.00015884,7]
[326574998,1715114175734,500.0,0.00015884,7]
[326574999,1715114176471,500.0,0.00015884,7]
[326575000,1715114177254,500.0,0.00015884,7]
[326575002,1715114243798,500.0,0.00015884,7]
[326575003,1715114244107,404.82,0.00015884,7]
[326575088,1715115038923,-154.75415547,0.00015884,2]
[326575089,1715115038933,-103.99944305,0.0001589,2]
[326575094,1715115038945,-65.26701395,0.0001589,2]
[326575096,1715115038955,-217.663946,0.0001589,2]
[326575099,1715115038963,-991.46263386,0.00016,2]
[326575102,1715115038973,-238.02243707,0.00016323,2]
[326575105,1715115038983,-217.78112,0.00016352,2]
[326575108,1715115038992,-469.31894033,0.00016422,2]
[326575110,1715115039002,-793.44154841,0.00016422,2]
[326575112,1715115039011,-1092.51303732,0.00016422,2]
[326575114,1715115039020,-1142.43379582,0.00016422,2]
[326575116,1715115039030,-300.0,0.00016422,2]
[326575118,1715115039040,-549.76477207,0.00016422,2]
[326575119,1715115039054,-500.0,0.00016422,2]
[326575122,1715115039064,-1202.16,0.00016422,2]
[326575124,1715115039074,-500.0,0.00016422,2]
[326575125,1715115039084,-3823.7,0.00016422,2]
[326575127,1715115039094,-5740.36,0.00016422,2]
[326575129,1715115039104,-500.0,0.00016422,2]
[326575131,1715115039114,-500.0,0.00016422,2]
[326575133,1715115039124,-240.19230089,0.00016423,2]
[326575135,1715115039134,-500.0,0.00016423,2]
[326575137,1715115039144,-891.58,0.00016423,2]
[326575138,1715115039153,-500.0,0.00016423,2]
[326575139,1715115039163,-328.6227342,0.00016423,2]
[326575140,1715115039173,-500.0,0.00016423,2]
[326575141,1715115039182,-500.0,0.00016423,2]
[326575142,1715115039192,-500.0,0.00016423,2]
[326575143,1715115039202,-723.21,0.00016423,2]
[326575144,1715115039211,-500.0,0.00016423,2]
[326575145,1715115039221,-500.0,0.00016423,2]
[326575146,1715115039230,-500.0,0.00016423,2]
[326575147,1715115039240,-1974.08,0.00016423,2]
[326575148,1715115039250,-500.0,0.00016423,2]
[326575149,1715115039260,-741.75,0.00016423,2]
[326575150,1715115039270,-957.64,0.00016423,2]
[326575151,1715115039280,-500.0,0.00016423,2]
[326575152,1715115039290,-500.0,0.00016423,2]
[326575153,1715115039302,-500.0,0.00016423,2]
[326575154,1715115039312,-500.0,0.00016423,2]
[326575155,1715115039321,-500.0,0.00016423,2]
[326575156,1715115039331,-500.0,0.00016423,2]
[326575157,1715115039341,-500.0,0.00016423,2]
[326575158,1715115039351,-500.0,0.00016423,2]
[326575159,1715115039360,-500.0,0.00016423,2]
[326575160,1715115039370,-380.87625861,0.00016423,2]
[326575161,1715115039380,-500.0,0.00016423,2]
[326575162,1715115039390,-500.0,0.00016423,2]
[326575163,1715115039400,-500.0,0.00016423,2]
[326575164,1715115039409,-983.13,0.00016423,2]
[326575165,1715115039419,-1552.07,0.00016423,2]
[326575166,1715115039429,-500.0,0.00016423,2]
[326575167,1715115039439,-500.0,0.00016423,2]
[326575168,1715115039453,-643.6,0.00016423,2]
[326575169,1715115039463,-500.0,0.00016423,2]
[326575170,1715115039473,-500.0,0.00016423,2]
[326575171,1715115039484,-885.41,0.00016423,2]
[326575172,1715115039494,-500.0,0.00016423,2]
[326575173,1715115039504,-500.0,0.00016423,2]
[326575174,1715115039514,-799.78,0.00016423,2]
[326575175,1715115039526,-3202.83,0.00016423,2]
[326575176,1715115039536,-757.91,0.00016423,2]
[326575177,1715115039548,-500.0,0.00016423,2]
[326575178,1715115039557,-500.0,0.00016423,2]
[326575179,1715115039567,-358.44061054,0.00016423,2]
[326575180,1715115039576,-3403.19,0.00016423,2]
[326575181,1715115039587,-3704.56,0.00016423,2]
[326575182,1715115039597,-1848.7,0.00016423,2]
[326575183,1715115039607,-1461.52,0.00016423,2]
[326575184,1715115039618,-561.57,0.00016423,2]
[326575185,1715115039627,-500.0,0.00016423,2]
[326575186,1715115039637,-268.44552716,0.00016423,2]
[326575187,1715115039647,-342.26193141,0.00016423,2]
[326575188,1715115039657,-1036.68,0.00016423,2]
[326575189,1715115039666,-1036.68,0.00016423,2]
[326575190,1715115039676,-500.0,0.00016423,2]
[326575191,1715115039686,-783.13,0.00016423,2]
[326575192,1715115039695,-3575.47,0.00016423,2]
[326575193,1715115039705,-500.0,0.00016423,2]
[326575194,1715115039715,-500.0,0.00016423,2]
[326575195,1715115039725,-500.0,0.00016423,2]
[326575196,1715115039735,-3484.72,0.00016423,2]
[326575197,1715115039744,-500.0,0.00016423,2]
[326575198,1715115039755,-500.0,0.00016423,2]
[326575199,1715115039765,-500.0,0.00016423,2]
[326575200,1715115039774,-500.0,0.00016423,2]
[326575201,1715115039786,-500.0,0.00016423,2]
[326575202,1715115039797,-1472.07,0.00016423,2]
[326575203,1715115039807,-500.0,0.00016423,2]
[326575204,1715115039817,-500.0,0.00016423,2]
[326575205,1715115039827,-1536.79,0.00016423,2]
[326575206,1715115039836,-2421.83,0.00016423,2]
[326575207,1715115039846,-3183.78,0.00016423,2]
[326575208,1715115039855,-3180.18,0.00016423,2]
[326575209,1715115039865,-3460.36,0.00016423,2]
[326575210,1715115039875,-500.0,0.00016423,2]
[326575211,1715115039885,-642.12,0.00016423,2]
[326575212,1715115039895,-500.0,0.00016424,2]
[326575213,1715115039905,-500.0,0.00016424,2]
[326575214,1715115039915,-544.72,0.00016424,2]
[326575215,1715115039925,-500.0,0.00016424,2]
[326575216,1715115039935,-500.0,0.00016424,2]
[326575217,1715115039945,-500.0,0.00016424,2]
[326575218,1715115039955,-500.0,0.00016424,2]
[326575219,1715115039965,-570.46,0.00016424,2]
[326575220,1715115039975,-500.0,0.00016424,2]
[326575221,1715115039985,-1089.03,0.00016424,2]
[326575222,1715115039995,-500.0,0.00016424,2]
[326575223,1715115040004,-321.82100988,0.00016424,2]
[326575224,1715115040016,-500.0,0.00016424,2]
[326575225,1715115040026,-500.0,0.00016424,2]
[326575226,1715115040036,-556.95,0.00016424,2]
[326575227,1715115040048,-500.0,0.00016424,2]
[326575228,1715115040058,-500.0,0.00016424,2]
[326575229,1715115040068,-500.0,0.00016424,2]
[326575230,1715115040079,-500.0,0.00016424,2]
[326575231,1715115040090,-500.0,0.00016424,2]
[326575232,1715115040099,-500.0,0.00016424,2]
[326575233,1715115040109,-500.0,0.00016424,2]
[326575234,1715115040119,-797.38,0.00016424,2]
[326575235,1715115040129,-500.0,0.00016424,2]
[326575236,1715115040139,-1120.61,0.00016424,2]
[326575237,1715115040149,-500.0,0.00016424,2]
[326575238,1715115040159,-500.0,0.00016424,2]
[326575239,1715115040169,-500.0,0.00016424,2]
[326575240,1715115040179,-500.0,0.00016424,2]
[326575241,1715115040189,-500.0,0.00016424,2]
[326575242,1715115040199,-500.0,0.00016424,2]
[326575243,1715115040210,-501.71709557,0.00016424,2]
[326575244,1715115040220,-500.0,0.00016424,2]
[326575245,1715115040229,-1596.17,0.00016424,2]
[326575246,1715115040239,-500.0,0.00016424,2]
[326575247,1715115040249,-500.0,0.00016424,2]
[326575248,1715115040259,-735.03,0.00016424,2]
[326575249,1715115040268,-500.0,0.00016424,2]
[326575250,1715115040278,-500.0,0.00016424,2]
[326575251,1715115040287,-764.06,0.00016424,2]
[326575252,1715115040298,-500.0,0.00016424,2]
[326575253,1715115040308,-500.0,0.00016424,2]
[326575254,1715115040318,-500.0,0.00016424,2]
[326575255,1715115040327,-500.0,0.00016424,2]
[326575256,1715115040336,-500.0,0.00016424,2]
[326575257,1715115040346,-500.0,0.00016424,2]
[326575258,1715115040356,-500.0,0.00016424,2]
[326575259,1715115040365,-500.0,0.00016424,2]
[326575260,1715115040375,-500.0,0.00016424,2]
[326575261,1715115040385,-500.0,0.00016424,2]
[326575262,1715115040394,-513.29,0.00016424,2]
[326575263,1715115040404,-587.53,0.00016424,2]
[326575264,1715115040413,-1510.78,0.00016424,2]
[326575265,1715115040579,-500.0,0.00016424,2]
[326575266,1715115040589,-19739.53,0.00016424,2]
[326575267,1715115040599,-500.0,0.00016424,2]
[326575268,1715115040609,-897.74,0.00016424,2]
[326575269,1715115040618,-1036.68,0.00016424,2]
[326575270,1715115040631,-5361.74,0.00016424,2]
[326575271,1715115040642,-4384.69,0.00016424,2]
[326575272,1715115040652,-500.0,0.00016424,2]
[326575273,1715115040662,-273.3300509,0.000165,2]
[326575274,1715115040672,-55555.0,0.00016597,2]
[326575275,1715115040682,-1036.68,0.00016598,2]
[326575276,1715115040692,-1036.68,0.00016598,2]
[326575277,1715115040703,-166.04587495,0.00016599,2]
[326575278,1715115040714,-153.0,0.000166,2]
[326575279,1715115040724,-153.0,0.000166,2]
[326575280,1715115040734,-153.0,0.000166,2]
[326575281,1715115040744,-153.0,0.000166,2]
[326575282,1715115040755,-153.0,0.000166,2]
[326575283,1715115040766,-167.85937447,0.0001669,5]
[326575284,1715115040776,-88400.0,0.0001669,2]
[326575285,1715115040786,-1036.68,0.00016696,2]
[326575286,1715115040800,-637.65005087,0.00016696,2]
[326575287,1715115040810,-1202.16,0.00016696,2]
[326575288,1715115040823,-500.0,0.00016696,2]
[326575289,1715115040835,-3823.7,0.00016696,2]
[326575290,1715115040847,-5740.36,0.00016696,2]
[326575291,1715115040857,-500.0,0.00016696,2]
[326575292,1715115040867,-500.0,0.00016696,2]
[326575293,1715115040878,-500.31765063,0.00016697,2]
[326575305,1715115043206,-23509.78739143,0.00016697,2]
[326575308,1715115043219,-18602.96085262,0.00016697,2]
[326575316,1715115045092,-16607.09626956,0.00016697,2]
[326575319,1715115045101,-500.0,0.00016697,2]
[326575321,1715115045111,-891.58,0.00016697,2]
[326575322,1715115045120,-500.0,0.00016697,2]
[326575323,1715115045129,-305.36308412,0.00016697,2]
[326575324,1715115045139,-500.0,0.00016697,2]
[326575325,1715115045149,-500.0,0.00016697,2]
[326575326,1715115045158,-723.21,0.00016697,2]
[326575327,1715115045168,-500.0,0.00016697,2]
[326575328,1715115045177,-500.0,0.00016697,2]
[326575329,1715115045187,-500.0,0.00016697,2]
[326575330,1715115045196,-204.55039077,0.00016697,2]
[326575333,1715115047502,-616.78,0.00016422,2]
[326575337,1715115047512,-500.0,0.00016423,2]
[326575340,1715115047522,-500.0,0.00016423,2]
[326575345,1715115047533,-616.78,0.00016696,2]
[326575349,1715115047543,-1127.69,0.00016697,2]
[326575397,1715115324780,373.63,0.0002655,120]
[326575415,1715115482633,240.27596315,9.999e-05,2]
[326575421,1715115517484,156.39130606,9.999e-05,2]
[326575422,1715115522418,154.75239617,9.999e-05,2]
[326575424,1715115525051,154.75239617,9.999e-05,2]
[326575425,1715115526436,154.75239617,9.999e-05,2]
[326575426,1715115531228,154.75239617,9.999e-05,2]
[326575428,1715115539342,154.75239617,9.999e-05,2]
[326575430,1715115544887,1493.5731825,9.999e-05,2]
[326575431,1715115547225,154.75239617,9.999e-05,2]
[326575432,1715115549413,469.47096608,9.999e-05,2]
[326575435,1715115563231,162.28050051,9.999e-05,2]
[326575436,1715115563263,1092.87842809,9.999e-05,2]
[326575439,1715115605743,378.8,0.0002655,120]
[326575446,1715115715234,1713.21356064,9.999e-05,2]
[326575457,1715116022596,1092.87842809,9.999e-05,2]
[326575481,1715116236506,-190.971136,0.0001589,2]
[326575483,1715116236517,-181.424581,0.0001589,2]
[326575485,1715116236529,-7948.04730527,0.00016,2]
[326575487,1715116236539,-785.32231489,0.00016321,2]
[326575489,1715116236550,-2000.0,0.00016322,2]